Cogmind - Beta 13 @@@ ROGUE MODE // 2024.04.05 @ 17:46:00 Player: iromakkem Result: Self-destructed Performance ------------- Evolutions (2) 1000 Regions Visited (5) 1000 Robots Destroyed (37) 185 Value Destroyed (743) 743 Prototype IDs (0) 0 Alien Tech Used (0) 0 Bonus (0) 0 TOTAL SCORE: 2928 Bonus ------- None Cogmind --------- Core Integrity 313/550 Matter 291/300 Energy 125/125 System Corruption 0% Temperature Cool (9) Movement Walking (90) Location -8/Materials Parts ------- > --- POWER (2) -------- Light Ion Engine > --- PROPULSION (2) --- VSS Leg > --- UTILITY (4) ------ Small Storage Unit > --- WEAPON (3) ------- Axe > --- INVENTORY (8) ---- Light Ion Engine VSS Leg Improved Terrain Scanner Seismic Detector Targeting Computer Hardened Light Armor Plating Peak State ------------ > --- POWER ------------ Light Ion Engine > --- PROPULSION ------- Aluminum Leg VSS Leg > --- UTILITY ---------- Improved Heat Sink Small Storage Unit Improved Terrain Scanner Targeting Computer > --- WEAPON ----------- Mining Laser Plasma Cutter Axe > --- INVENTORY -------- Light Ion Engine Light Ion Engine VSS Leg Improved Terrain Scanner Seismic Detector Targeting Computer Hardened Light Armor Plating Mining Laser [Rating: 20] Favorites ----------- Power Ion Engine Engine Ion Engine Propulsion Light Treads Treads Light Treads Leg Aluminum Leg Utility Small Storage Unit Device Improved Terrain Scanner Storage Small Storage Unit Processor Targeting Computer Protection Light Armor Plating Weapon Mining Laser Energy Gun EM Pulse Gun Energy Cannon Light EM Pulse Cannon Ballistic Gun Assault Rifle Launcher Grenade Launcher Special Weapon Mining Laser Slashing Weapon Axe Build | -11 -10 -10 -9 -9 -8 ------- Run | Yrd Mat Min Mat Min Mat Slots Evolved 4 | . . . 2 . 2 Power 1 | . . . . . 1 Propulsion . | . . . . . . Utility 2 | . . . 1 . 1 Weapon 1 | . . . 1 . . Parts Attached 34 | 8 5 1 11 5 4 Power 3 | 1 . . . 1 1 Engine 3 | 1 . . . 1 1 Core . | . . . . . . Reactor . | . . . . . . Propulsion 7 | 2 . . 3 2 . Treads 2 | 2 . . . . . Leg 5 | . . . 3 2 . Wheel . | . . . . . . Hover . | . . . . . . Flight . | . . . . . . Utility 6 | 2 . . 3 . 1 Device 3 | 1 . . 2 . . Storage 1 | 1 . . . . . Processor 1 | . . . . . 1 Hackware . | . . . . . . Protection 1 | . . . 1 . . Artifact . | . . . . . . Weapon 18 | 3 5 1 5 2 2 Energy Gun 5 | 2 1 . 2 . . Energy Cannon 1 | . . . 1 . . Ballistic Gun 1 | . 1 . . . . Ballistic Cannon . | . . . . . . Launcher 3 | . 2 1 . . . Special Weapon 7 | 1 1 . 2 2 1 Impact Weapon . | . . . . . . Slashing Weapon 1 | . . . . . 1 Piercing Weapon . | . . . . . . Special Melee Weapon . | . . . . . . Unidentified Prototypes . | . . . . . . Parts Lost 16 | . . 2 6 . 8 Power 2 | . . . 1 . 1 Propulsion 3 | . . . 2 . 1 Utility 3 | . . . . . 3 Weapon 8 | . . 2 3 . 3 Highest Loss Streak 8 | . . 2 5 . 8 To Critical Strikes . | . . . . . . Average Slot Usage (%) 90 | . 99 85 86 93 79 Engine 11 | . 14 14 10 9 9 Treads 12 | . 28 28 1 . . Leg 10 | . . . 19 18 17 Device 16 | . 14 14 16 22 14 Storage 12 | . 14 14 11 11 9 Protection 1 | . . . 5 . . Energy Gun 6 | . 13 . 6 . . Energy Cannon 2 | . . . 5 . . Launcher 5 | . 7 13 3 . . Special Weapon 8 | . 6 . 6 32 13 Naked Turns . | . . . . . . Heaviest Build 22 | 14 16 14 22 13 17 Greatest Support 40 | 40 40 40 40 22 22 Greatest Overweight (x) 2 | . . . 2 2 . Average Overweight (x) . | . . . . . . Largest Inventory Capacity 8 | 8 8 8 8 8 8 Average Capacity 7 | 5 8 8 8 8 8 Most Carried 8 | 5 8 8 8 8 8 Average Carried 7 | 4 7 7 7 7 7 Final Capacity 8 | 8 8 8 8 8 8 Final Carried 8 | 5 8 8 8 8 6 Class Distribution -------------------- 68% | Mutant 13% | Tank 11% | Scavenger-Skirmisher 6% | Scavenger-Mutant Dominant Class ---------------- Mutant | -10/Materials Mutant | -10/Mines Mutant | -9/Materials Scavenger-Skirmisher | -9/Mines Scavenger-Mutant | -8/Materials Resources | -11 -10 -10 -9 -9 -8 ----------- Run | Yrd Mat Min Mat Min Mat Matter Collected 630 | 231 113 80 175 31 . Remotely 124 | . . . 124 . . Salvage Created 933 | 11 235 81 575 31 . Parts 79 | 4 25 4 35 9 2 Haulers Intercepted 3 | . 1 . 2 . . Recyclers Shooed 1 | . . . 1 . . Parts Field Recycled . | . . . . . . Retrieved Matter . | . . . . . . Parts Self-Destructed . | . . . . . . Prevented . | . . . . . . Kills | -11 -10 -10 -9 -9 -8 ------- Run | Yrd Mat Min Mat Min Mat Combat Hostiles Destroyed 22 | . 7 2 12 . 1 Melee 1 | . . . . . 1 Guns 7 | . 1 . 6 . . Cannons 5 | . . . 5 . . AOE 9 | . 6 2 1 . . Classes Destroyed 9 | 1 6 . 2 . . Worker 4 | . 1 2 1 . . Builder 2 | . 2 . . . . Tunneler 3 | 1 . . . 2 . Hauler 3 | . 1 . 2 . . Watcher 3 | . 2 . 1 . . Swarmer 8 | . 5 . 3 . . Grunt 10 | . 2 2 5 . 1 Duelist 1 | . . . 1 . . Sentry 3 | . . . 3 . . Best Kill Streak 6 | 1 6 2 3 5 1 Combat Bots Only 3 | . 3 2 3 . 1 Max Kills in Single Turn 2 | 1 2 2 1 1 1 Gunslinging . | . . . . . . Exploded 2 | . 2 1 1 . . Melee 1 | . . . . . 1 Uniques/NPCs Destroyed . | . . . . . . Combat | -11 -10 -10 -9 -9 -8 -------- Run | Yrd Mat Min Mat Min Mat Hostile Shots Fired 188 | . 26 9 94 . 59 Missed 54 | . 6 3 29 . 16 Damage Taken 1974 | . 192 202 918 . 662 Core 574 | . 47 61 229 . 237 Absorbed by Shields . | . . . . . . Core Remaining (%) 66 | 100 . 56 . 42 . Volleys Fired 79 | 1 22 5 44 2 5 Largest 2 | 2 2 2 2 2 2 Hottest 200 | 90 150 50 121 120 200 Shots Fired 114 | 2 32 8 61 3 8 Gun 57 | 2 22 3 30 . . Cannon 19 | . . . 19 . . Launcher 18 | . 7 5 6 . . Special 20 | . 3 . 6 3 8 Kinetic 3 | . . 3 . . . Thermal 56 | 2 7 . 36 3 8 Explosive 18 | . 7 5 6 . . Electromagnetic 37 | . 18 . 19 . . Robot Hit Streak 15 | 2 3 10 15 4 1 Robot Miss Streak 3 | . 3 . 3 . 2 Penetration Max . | . . . . . . Secondary Targets . | . . . . . . Shots Hit Robots 71 | 2 15 8 40 2 4 Core Hits 62 | 1 16 7 34 2 2 Critical Kills . | . . . . . . Critical Parts Destroyed . | . . . . . . Critical Strikes 1 | . 1 . . . . Burn 1 | . 1 . . . . Melee Attacks 2 | . . . . . 2 Impact . | . . . . . . Slashing 2 | . . . . . 2 Piercing . | . . . . . . Sneak Attacks . | . . . . . . Combat Hostiles . | . . . . . . Follow-up Attacks . | . . . . . . Damage Inflicted 1849 | 25 716 304 666 43 95 Guns 479 | 25 125 36 293 . . Cannons 228 | . . . 228 . . Explosions 936 | . 591 267 78 . . Melee 35 | . . . . . 35 Ramming 42 | . . 1 22 19 . Kinetic 36 | . . 36 . . . Thermal 568 | 25 121 . 338 24 60 Explosive 841 | . 496 267 78 . . Electromagnetic 327 | . 99 . 228 . . Impact . | . . . . . . Slashing 35 | . . . . . 35 Piercing . | . . . . . . Highest Corruption . | . . . . . . Average Corruption . | . . . . . . Corruption Purged . | . . . . . . Corruption Blocked . | . . . . . . Overload Shots . | . . . . . . Overflow Damage 5 | . . 2 3 . . Projectiles . | . . . . . . Explosions 5 | . . 2 3 . . Melee . | . . . . . . Knockbacks . | . . . . . . Impact . | . . . . . . Kinetic . | . . . . . . Secondary . | . . . . . . Self-Inflicted Damage 179 | . 32 110 37 . . Shots 7 | . 2 4 1 . . Rammed 1 | . . 1 . . . Targets Rammed 8 | . . 1 5 2 . Kicked 7 | . . . 5 2 . Crushed . | . . . . . . Highest Temperature 255 | 30 80 13 255 . 30 Average Temperature 60 | 18 21 8 89 . 13 Received Heat Transfer 798 | . 15 51 327 . 405 Effects 2 | . . . 2 . . Interference 2 | . . . 2 . . Siege Activations . | . . . . . . Robots Corrupted . | . . . . . . Combat Hostiles . | . . . . . . Parts Fried . | . . . . . . Impact Corruptions . | . . . . . . Robots Melted . | . . . . . . Combat Hostiles . | . . . . . . Parts Melted . | . . . . . . Heat Transferred 1269 | 62 198 . 798 74 137 Parts Sabotaged . | . . . . . . Parts Stolen . | . . . . . . Parts Stripped . | . . . . . . Power Chain Reactions 1 | . 1 . . . . Alert | -11 -10 -10 -9 -9 -8 ------- Run | Yrd Mat Min Mat Min Mat Peak Influence 251 | 5 251 86 228 91 50 Initial 81 | . 3 19 33 81 35 Average 95 | 1 93 76 130 90 33 Maximum Alert Level 1 | . 1 . 1 . . Low Security (%) 87 | 100 78 100 81 100 100 Level 1 12 | . 21 . 18 . . Level 2 . | . . . . . . Level 3 . | . . . . . . Level 4 . | . . . . . . Level 5 . | . . . . . . High Security . | . . . . . . Max Security . | . . . . . . Squads Dispatched 3 | . . . 2 . 1 Investigation . | . . . . . . Extermination . | . . . . . . Reinforcement 3 | . . . 2 . 1 Assault . | . . . . . . Garrison . | . . . . . . Intercept . | . . . . . . Searches Triggered . | . . . . . . Construction Impeded 1 | . . . 1 . . Haulers Reinforced . | . . . . . . Active Scanning Responses . | . . . . . . Cargo Convoy Interrupts . | . . . . . . Stealth | -11 -10 -10 -9 -9 -8 --------- Run | Yrd Mat Min Mat Min Mat Distress Signals 3 | . 1 . 1 . 1 Communications Jammed . | . . . . . . Distress Signals . | . . . . . . Times Spotted 37 | . 12 2 18 . 5 Peak Tracking Total 4 | . 4 2 4 . 4 Tactical Retreats 1 | . . . 1 . . Traps | -11 -10 -10 -9 -9 -8 ------- Run | Yrd Mat Min Mat Min Mat Traps Triggered . | . . . . . . Indirectly . | . . . . . . Trap Hack Attempts . | . . . . . . Triggered . | . . . . . . Disarmed . | . . . . . . Reprogrammed . | . . . . . . Reused . | . . . . . . Traps Extracted . | . . . . . . Installed . | . . . . . . Triggered . | . . . . . . Machines | -11 -10 -10 -9 -9 -8 ---------- Run | Yrd Mat Min Mat Min Mat Machines Disabled . | . . . . . . Max in Single Turn . | . . . . . . Machines Repaired . | . . . . . . Machines Dismantled . | . . . . . . Machines Sabotaged . | . . . . . . Overloaded Fab Kills . | . . . . . . Hacking | -11 -10 -10 -9 -9 -8 --------- Run | Yrd Mat Min Mat Min Mat Machines Accessed 1 | . 1 . . . . Terminals . | . . . . . . Fabricators . | . . . . . . Repair Stations . | . . . . . . Recycling Units 1 | . 1 . . . . Scanalyzers . | . . . . . . Garrison Access . | . . . . . . Total Hacks 3 | . 3 . . . . Successful 2 | . 2 . . . . Failed 1 | . 1 . . . . Catastrophic . | . . . . . . Database Lockouts . | . . . . . . Manual . | . . . . . . Terminals . | . . . . . . Fabricators . | . . . . . . Repair Stations . | . . . . . . Recycling Units 3 | . 3 . . . . Scanalyzers . | . . . . . . Garrison Access . | . . . . . . Terminal Hacks . | . . . . . . Fabricator Hacks . | . . . . . . Repair Station Hacks . | . . . . . . Recycling Unit Hacks 2 | . 2 . . . . Report Inventory 1 | . 1 . . . . Retrieve Components 1 | . 1 . . . . Scanalyzer . | . . . . . . Garrison Access Hacks . | . . . . . . Unauthorized Hacks . | . . . . . . Terminals . | . . . . . . Fabricators . | . . . . . . Repair Stations . | . . . . . . Recycling Units . | . . . . . . Scanalyzers . | . . . . . . Garrison Access . | . . . . . . Data Cores Recovered . | . . . . . . Used . | . . . . . . Hacking Detections 1 | . 1 . . . . Full Trace Events . | . . . . . . Feedback Events . | . . . . . . Feedback Blocked . | . . . . . . Robot Schematics Acquired . | . . . . . . Robots Built . | . . . . . . Authchips . | . . . . . . Time . | . . . . . . Total Robot Build Rating . | . . . . . . Part Schematics Acquired . | . . . . . . Parts Built . | . . . . . . Authchips . | . . . . . . Time . | . . . . . . Total Part Build Rating . | . . . . . . Parts Repaired . | . . . . . . Time . | . . . . . . Parts Recycled . | . . . . . . Recycled Matter . | . . . . . . Retrieved Matter . | . . . . . . Retrieved Components 1 | . 1 . . . . Parts Scanalyzed . | . . . . . . Part Schematics Acquired . | . . . . . . Parts Damaged . | . . . . . . Bothacking | -11 -10 -10 -9 -9 -8 ------------ Run | Yrd Mat Min Mat Min Mat Used RIF Installer . | . . . . . . Robots Hacked . | . . . . . . Non-combat . | . . . . . . Combat . | . . . . . . Robot Hacks Applied . | . . . . . . Relay Couplers Released . | . . . . . . Fabnet Peak Effective % . | . . . . . . Robots Rewired . | . . . . . . Allies Hacked . | . . . . . . Hacks Repelled . | . . . . . . Allies | -11 -10 -10 -9 -9 -8 -------- Run | Yrd Mat Min Mat Min Mat Total Allies . | . . . . . . Largest Group . | . . . . . . Highest-Rated Group . | . . . . . . Highest-Rated Ally . | . . . . . . Total Orders . | . . . . . . Ally Attacks . | . . . . . . Total Damage . | . . . . . . Kills . | . . . . . . Allies Corrupted . | . . . . . . Allies Melted . | . . . . . . Intel | -11 -10 -10 -9 -9 -8 ------- Run | Yrd Mat Min Mat Min Mat Robot Analysis Total . | . . . . . . Derelict Logs Recovered 2 | . . 1 . 1 . Drone Launches . | . . . . . . Drone Recoveries . | . . . . . . Exploration | -11 -10 -10 -9 -9 -8 ------------- Run | Yrd Mat Min Mat Min Mat Turns Passed 1582 | 79 445 204 571 171 112 Spaces Moved 853 | 42 231 118 287 120 55 Core 21 | 9 . . 8 4 . Treads 401 | 33 231 118 19 . . Legs 431 | . . . 260 116 55 Wheels . | . . . . . . Hover . | . . . . . . Flight . | . . . . . . Fastest Speed 50 | 50 160 160 120 105 105 Average Speed 144 | 136 160 160 149 106 105 Slowest Speed 190 | 160 160 160 190 150 105 Overloaded Moves . | . . . . . . Propulsion Burnouts . | . . . . . . Robots Hopped . | . . . . . . Cave-ins Triggered . | . . . . . . Exploration Rate (%) 27 | 3 40 47 27 37 10 Regions Visited 5 Branch Regions 2 Pre-discovered Areas 1 | . . . . 1 . Known Exits Taken 1 | . . 1 . . . Unknown Exits Taken 4 | 1 1 . 1 1 . Scrap Searched 1 | . . 1 . . . Spaces Dug . | . . . . . . Terrain Destroyed 86 | . 55 12 18 . 1 Melee . | . . . . . . Projectile 3 | . 2 . . . 1 AOE 83 | . 53 12 18 . . Terrain Rammed . | . . . . . . Walls Destroyed . | . . . . . . Machines Disabled . | . . . . . . Actions | -11 -10 -10 -9 -9 -8 --------- Run | Yrd Mat Min Mat Min Mat Total 1054 | 61 270 125 361 155 82 Wait 44 | . 1 . 4 24 15 Move 848 | 41 230 117 286 119 55 Hop . | . . . . . . Pick Up 26 | 10 7 1 4 3 1 Fast Attach 13 | 3 1 . 7 2 . Attach 18 | 5 2 1 4 3 3 Detach . | . . . . . . Swap 3 | . 2 . . . 1 Drop 13 | 1 5 . 7 . . Fire 79 | 1 22 5 44 2 5 Melee 2 | . . . . . 2 Ram . | . . . . . . Kick 7 | . . . 5 2 . Crush 1 | . . 1 . . . Escape Stasis . | . . . . . . Rewire . | . . . . . . Trap . | . . . . . . Miscellaneous . | . . . . . . Route ------- -11/Scrapyard -10/Materials -10/Mines -9/Materials -9/Mines -8/Materials History --------- Turn | Location | Event 25 | -11/Scrapyard | Discovered new exit (range 15) 80 | -11/Scrapyard | Entered Materials 334 | -10/Materials | Build established: Mutant 466 | -10/Materials | Discovered new exit (range 16) 525 | -10/Materials | Entered Mines 588 | -10/Mines | Identified exit to Materials 729 | -10/Mines | Entered Materials 729 | -9/Materials | Evolved 2 slots: Utility x1, Weapon x1 984 | -9/Materials | Discovered new exit (range 9) 1288 | -9/Materials | Core integrity fell below 50% 1300 | -9/Materials | Entered Mines 1303 | -9/Mines | Met a Derelict bent on vengeance 1314 | -9/Mines | Lost 5 parts (1p2n2w) 1387 | -9/Mines | Learned Materials stockpile data 1405 | -9/Mines | Found a hidden stash of uninstalled traps 1463 | -9/Mines | Discovered new exit (range 9) 1470 | -9/Mines | Learned location of Storage (-8) 1471 | -9/Mines | Entered Materials 1471 | -8/Materials | Evolved 2 slots: Power x1, Utility x1 1583 | -8/Materials | Self-destructed Last Messages --------------- 01537_ Critical hit (Burn: +37). 01537_ U-05 Engineer lays Concrete. 01540_ K-01 Serf collects debris. 01540_ W-25 Informer sends out distress signal. 01543_ K-01 Serf collects debris. 01550_ Critical hit (Burn: +37). 01551_ Mining Laser destroyed. 01551_ Critical hit (Burn: +37). 01552_ K-01 Serf collects debris. 01555_ Targeting Computer destroyed. 01557_ K-01 Serf collects debris. 01561_ Mining Laser destroyed. 01563_ K-01 Serf collects debris. 01563_ Lgt. Ion Engine destroyed. 01565_ Imp. Terrain Scanner destroyed. 01565_ Imp. Heat Sink destroyed. 01565_ G-47 Trooper destroyed. 01566_ K-01 Serf collects debris. 01570_ Aluminum Leg destroyed. 01572_ K-01 Serf collects debris. Map ----- +----------------------------------------------------+ | ?????????????????????????????????????????????? | | ?????????????????????????????????????????????? | | ?????????????????????????????????????????????? | | ?????????????????????????????????????????????? | | ?????????????????????????????????????????????? | | ?????????????????????????????????????????????? | | ?????????????????????????????????????????????? | | ?????????????????????????????????????????????? | | ?????????????????????????????????????????????? | | ?????????????????????????????????????????????? | | ?????????????????????????????????????????????? | | ????????????#????????????????????????????????? | | ?????????????????? ??????????????????????????? | | ?????????????????????????????????????????????? | | ?????????????????????????????????????????????? | | ??????????????????????????????#??????????????? | | ?????????????????????????????????????????????? | | ??????????????????????????#??????????????????? | | ?????????????????????#???????????????????????? | | ??????????????????????#??????????????????????? | | ????????????####???????#???#?????????????????? | | ????????????# #?????????????????????????????? | | ????????????# ?########????????????????????? | | ??????????####u### ;#????????????????????? | | ??????????# k#######???????????????? | | ??????????+ @! == T?????????? | | ??????????# = * = #?????????????? | | ??????????# ^ g #?????????????? | | ??????????# #??#??????????? | | ???? ?????#u ^ #?????????????? | | ????#+?#??# " #?????????????? | | ????# ????# """"" #?????????????? | | ????# ##### """"" ????????????? | | ????# """"" Y #???????????? | | ????# """ ""T"" #???????????? | | ????# """"" +???????????? | | #??## ??? ????????????? | | ???#T = ?? ???????????????? | | ???## ################# ? ????????????????? | | #???# #??????##???????#???????????????????? | | ????# ####### #??????????????????????????? | | ????# #?#? ???????????????????????? | | ????# ######## # #???????????????????????????? | | ????# #??????# #?????????????????????????????? | | ????# #??????# #?????????????????????????????? | | ????# ########+##????????????????????????????? | | ?#??# ## #????????????????????????????? | | ???## ## """" #????????????????????????????? | | ??### ##[ """" ##???????????????????????????? | | ???# # """" #????????????????????????????? | +----------------------------------------------------+ Best States ------------- Heat Dissipation 45 Energy Generation 15 Energy Capacity 250 Matter Stores 300 Matter Capacity 300 Sight Range 16 Terrain Scan Range 16 Terrain Scan Density 10 Armor Coverage 150 Evasion (%) 55 Targeting Accuracy 5 Recoil Reduction 2 Item Schematics ----------------- None Robot Schematics ------------------ None Fabricated ------------ Nothing Alien Tech Used ----------------- None Achievements -------------- Use The Force Challenges ------------ None Game ------ Seed SubdwellerAssemblyMount Manual? 0 Play Time 00:20:50 Cumulative 9.1 hours Start 2024.04.05 @ 17:18:17 End 2024.04.05 @ 17:46:00 Sessions 1 Manual Loads 0 Difficulty Rogue Special Mode None Game No. 11 Rogue 11 Adventurer 0 Explorer 0 Win Type - Total 0 Types 0/0/0/0/0/0/0/0/0 Lore% 4 Gallery% 13 Achievement% 13 Wizard Run 0 Options --------- Layout 1 ASCII 0 Keyboard 0 Movement Mouse Keybinds 0 Fullscreen 1 Font 32/SmallcapsGlow Map View 50x35 Zoom Use 0% Tactical HUD 1 Map Filters NONE Filters NONE Steam 1 RUN: 5cf2a1eb-ce20-4d11-9c08-aac90112bbd5